bitfinex/quotes_BTCUSD_20251215
["timestamp","ask_amount","ask_price","bid_price","bid_amount"]
[1765818047825,0.07949999,86487.0,86486.0,0.46020422]
[1765818048466,0.08049999,86487.0,86486.0,0.46020422]
[1765818048891,0.07949999,86487.0,86486.0,0.46020422]
[1765818049285,0.00025463,86493.0,86486.0,0.46120422]
[1765818049540,0.01155935,86510.0,86505.0,0.11552005]
[1765818049755,0.23139783,86506.0,86505.0,0.16357005]
[1765818049968,0.23139783,86506.0,86505.0,0.18201005]
[1765818050185,0.23181149,86506.0,86505.0,0.18201005]
[1765818050499,0.23181149,86506.0,86505.0,0.11552005]
[1765818050728,0.23123258,86493.0,86492.0,0.11713292]
[1765818051144,0.24278785,86496.0,86495.0,0.11552005]
[1765818051361,0.01156109,86497.0,86496.0,0.11552005]
[1765818051583,0.24277736,86499.0,86498.0,0.11552005]
[1765818051828,0.24277736,86499.0,86498.0,0.16357005]
[1765818052033,0.24277736,86499.0,86498.0,0.22734005]
[1765818052447,0.01175989,86506.0,86501.0,0.11552005]
[1765818052648,0.0002,86506.0,86505.0,0.16357005]
[1765818052855,0.0002,86506.0,86505.0,0.45854055]
[1765818053005,0.0002,86506.0,86505.0,0.22734005]
[1765818053424,0.05832141,86507.0,86506.0,0.11552005]
[1765818053635,0.01155962,86508.0,86507.0,0.11552005]
[1765818054010,0.24275211,86508.0,86507.0,0.19546005]
[1765818054723,0.01155882,86514.0,86511.0,0.11552005]
[1765818054942,0.01155882,86514.0,86513.0,0.11552005]
[1765818055179,0.24273527,86514.0,86513.0,0.16357005]
[1765818055426,0.10785,86536.0,86513.0,0.16357005]
[1765818055427,0.03713,86547.0,86544.0,0.11552005]
[1765818055682,0.03713,86547.0,86514.0,0.2907]
[1765818055683,0.23117421,86515.0,86514.0,0.11552005]
[1765818056163,0.23118981,86509.0,86508.0,0.11552005]
[1765818056607,0.23169891,86509.0,86508.0,0.11552005]
[1765818056853,0.27906891,86509.0,86508.0,0.11552005]
[1765818057127,0.23121921,86498.0,86497.0,0.13396005]
[1765818057295,0.23121921,86498.0,86497.0,0.11552005]
[1765818057500,0.23121921,86498.0,86497.0,0.15617005]
[1765818058030,0.23121921,86498.0,86497.0,0.11552005]
[1765818058255,0.01156055,86501.0,86497.0,0.04065]
[1765818058459,0.24277756,86501.0,86500.0,0.15617005]
[1765818058588,0.24277756,86501.0,86500.0,0.11552005]
[1765818059954,0.24277756,86501.0,86500.0,0.15617005]
[1765818060259,0.24277756,86501.0,86500.0,0.11552005]
[1765818061319,0.24277756,86501.0,86490.0,0.01156203]
[1765818061320,0.23123835,86491.0,86490.0,0.11552005]
[1765818062399,0.23123835,86491.0,86490.0,0.11752005]
[1765818062708,0.23223835,86491.0,86490.0,0.11752005]
[1765818062907,0.001,86491.0,86490.0,0.42967352]
[1765818063128,0.001,86491.0,86490.0,0.44811352]
[1765818063333,0.00025457,86501.0,86500.0,0.34673392]
[1765818063546,0.00025457,86501.0,86500.0,0.40743679]
[1765818063712,0.00016265,86501.0,86500.0,0.44808679]
[1765818064238,0.00016265,86501.0,86500.0,0.53498277]
[1765818064732,0.68214483,86530.0,86500.0,0.53498277]
[1765818064733,0.01155762,86523.0,86518.0,0.01155828]
[1765818064906,0.01155775,86522.0,86521.0,0.11552005]
[1765818065143,0.01155949,86509.0,86506.0,0.02311978]
[1765818065322,0.24275211,86508.0,86507.0,0.11552005]
[1765818065528,0.24275211,86508.0,86507.0,0.13396005]
[1765818066359,0.24271716,86521.0,86520.0,0.11552005]
[1765818066567,0.002,86523.0,86522.0,0.11552005]
[1765818066782,0.001,86523.0,86522.0,0.06537837]
[1765818066984,0.001,86523.0,86522.0,0.05225595]
[1765818067189,0.001,86523.0,86522.0,0.07069595]
[1765818067361,0.24270557,86525.0,86524.0,0.11552005]
[1765818067569,0.24270557,86525.0,86524.0,0.15617005]
[1765818067768,0.24270557,86525.0,86490.0,0.79879922]
[1765818067769,0.01155868,86515.0,86514.0,0.00999308]
[1765818068037,0.23118714,86510.0,86507.0,0.001]
[1765818068254,0.26585249,86508.0,86507.0,0.11552005]
[1765818068470,0.26585249,86508.0,86507.0,0.11652005]
[1765818068698,0.23122189,86497.0,86496.0,0.14273005]
[1765818068908,0.23121742,86499.0,86496.0,0.04038409]
[1765818069032,0.24277824,86499.0,86498.0,0.15617005]
[1765818069419,0.01155949,86509.0,86503.0,0.01156029]
[1765818069645,0.24275772,86506.0,86505.0,0.11552005]
[1765818069882,0.24275772,86506.0,86503.0,0.00161287]
[1765818069883,0.23120318,86504.0,86503.0,0.00161287]
[1765818070090,0.24275772,86506.0,86503.0,0.00161287]
[1765818070290,0.24275772,86506.0,86505.0,0.15617005]
[1765818070490,0.01155949,86509.0,86508.0,0.11552005]
[1765818070792,0.01155949,86509.0,86508.0,0.15617005]
[1765818070994,0.24274858,86510.0,86508.0,0.15617005]
[1765818070995,0.23118458,86511.0,86510.0,0.11552005]
[1765818071190,0.01155909,86512.0,86510.0,0.15617005]
[1765818071442,0.23117662,86514.0,86513.0,0.11552005]
[1765818071443,0.24273544,86514.0,86513.0,0.11552005]
[1765818071676,0.01155882,86514.0,86513.0,0.15617005]
[1765818072565,0.01155882,86514.0,86513.0,0.19682005]
[1765818072943,0.01255882,86514.0,86513.0,0.15617005]
[1765818073145,0.01155922,86511.0,86505.0,0.00161287]
[1765818073356,0.23119783,86506.0,86505.0,0.11713292]
[1765818073539,0.01155962,86508.0,86507.0,0.11552005]
[1765818073749,0.01155922,86511.0,86510.0,0.11552005]
[1765818074133,0.24274484,86511.0,86510.0,0.11552005]
[1765818075567,0.36021484,86511.0,86510.0,0.11552005]
[1765818075766,0.23120852,86502.0,86501.0,0.13396005]
[1765818077030,0.23120852,86502.0,86501.0,0.13496005]
[1765818077430,0.23120852,86502.0,86501.0,0.17562005]
[1765818077635,0.23120852,86502.0,86501.0,0.13496005]
[1765818077862,0.23120852,86502.0,86501.0,0.13596005]
[1765818078264,0.23120852,86502.0,86501.0,0.11752005]
[1765818078265,0.34767852,86502.0,86501.0,0.11752005]
[1765818078420,0.34767852,86502.0,86501.0,0.002]
[1765818078619,0.23120852,86502.0,86501.0,0.002]
[1765818078821,0.23120852,86502.0,86501.0,0.11752005]
[1765818078985,0.23120852,86502.0,86501.0,0.11652005]
[1765818079397,0.23220852,86502.0,86501.0,0.11652005]
[1765818079604,0.23220852,86502.0,86501.0,0.11552005]
[1765818079888,0.23220852,86502.0,86501.0,0.15618005]
[1765818080093,0.23320852,86502.0,86501.0,0.15618005]
[1765818080300,0.002,86502.0,86501.0,0.04066]
[1765818080497,0.001,86502.0,86501.0,0.42966411]
[1765818080725,0.002,86502.0,86501.0,0.19845292]
[1765818080978,0.001,86502.0,86501.0,0.17623292]
[1765818081141,0.001,86502.0,86501.0,0.46812756]
[1765818081375,0.001,86502.0,86501.0,0.44810411]
[1765818081805,0.07749999,86508.0,86507.0,0.24118824]
[1765818082018,0.07749999,86508.0,86507.0,0.28346111]
[1765818082181,0.01155762,86523.0,86508.0,0.39673093]
[1765818082489,0.01155762,86523.0,86508.0,0.4796638]
[1765818082707,0.07749999,86539.0,86508.0,0.4796638]
[1765818082708,0.01155628,86533.0,86508.0,0.4796638]
[1765818082902,0.01155521,86541.0,86540.0,0.00999308]
[1765818083054,0.23583522,86542.0,86541.0,0.03032308]
[1765818083265,0.23583522,86542.0,86541.0,0.07098308]
[1765818083850,0.23108249,86550.0,86549.0,0.00999308]
[1765818084266,0.23238631,86550.0,86549.0,0.00999308]
[1765818084471,0.01155414,86549.0,86542.0,0.01155508]
[1765818084680,0.24263619,86550.0,86549.0,0.11552005]
[1765818085097,0.24363619,86550.0,86549.0,0.11552005]
[1765818085502,0.24263619,86550.0,86549.0,0.11552005]
[1765818085927,0.01155615,86534.0,86533.0,0.11552005]
[1765818086130,0.24268218,86534.0,86533.0,0.11552005]
[1765818086336,0.24268218,86534.0,86533.0,0.15618005]
[1765818087685,0.01155468,86545.0,86542.0,0.01998616]
[1765818087883,0.01155468,86545.0,86543.0,0.01844]
[1765818087884,0.24264833,86545.0,86543.0,0.01844]
[1765818088204,0.24264833,86545.0,86544.0,0.13396005]
[1765818088639,0.24264833,86545.0,86533.0,0.00261287]
[1765818088640,0.23112302,86534.0,86533.0,0.11652005]
[1765818089236,0.001,86545.0,86544.0,0.00999308]
[1765818089393,0.001,86545.0,86544.0,0.24927598]
[1765818089780,0.10438,86580.0,86547.0,0.01155441]
[1765818089781,0.01155321,86556.0,86547.0,0.01155441]
[1765818089994,0.01155334,86555.0,86552.0,0.11552005]
[1765818090279,0.23107027,86554.0,86552.0,0.11552005]
[1765818090416,0.00159917,86553.0,86552.0,0.11552005]
[1765818090632,0.23109632,86544.0,86543.0,0.01099308]
[1765818090842,0.23109632,86544.0,86543.0,0.00999308]
[1765818091066,0.24265874,86542.0,86541.0,0.00999308]
[1765818091876,0.24265874,86542.0,86520.0,0.01155802]
[1765818091877,0.01155735,86525.0,86520.0,0.01155802]
[1765818092077,0.01155695,86528.0,86527.0,0.11552005]
[1765818092297,0.01155615,86534.0,86530.0,0.11552005]
[1765818092502,0.01155494,86543.0,86539.0,0.01155548]
[1765818092702,0.24265982,86541.0,86540.0,0.11552005]
[1765818093113,0.01844,86541.0,86540.0,0.11552005]
[1765818093518,0.01155468,86545.0,86538.0,0.01155561]
[1765818093519,0.23109479,86545.0,86538.0,0.01155561]
[1765818093766,0.24264947,86545.0,86544.0,0.11552005]
[1765818094376,0.2310785,86551.0,86535.0,0.01155601]
[1765818094377,0.08905373,86552.0,86551.0,0.11552005]
[1765818094587,0.07749999,86552.0,86551.0,0.11713292]
[1765818095100,0.01155308,86557.0,86552.0,0.01998616]
[1765818095256,0.01155268,86560.0,86552.0,0.01998616]
[1765818095456,0.2426071,86560.0,86552.0,0.25106112]
[1765818095657,0.24261093,86559.0,86552.0,0.25106112]
[1765818095865,0.23106743,86555.0,86552.0,0.10732396]
[1765818096077,0.01155321,86556.0,86552.0,0.33839892]
[1765818096377,0.01155321,86556.0,86552.0,0.10732396]
[1765818096516,0.01155321,86556.0,86552.0,0.01998616]
[1765818096517,0.00159917,86553.0,86552.0,0.01998616]
[1765818096721,0.00159917,86553.0,86552.0,0.25106112]
[1765818097389,0.00159917,86553.0,86552.0,0.34102912]
[1765818098248,0.23267146,86553.0,86552.0,0.01099308]
[1765818098995,0.23267146,86553.0,86552.0,0.001]
[1765818099984,0.23107496,86552.0,86551.0,0.00999308]
[1765818100154,0.23109632,86544.0,86543.0,0.2022515]
[1765818100528,0.01155428,86548.0,86547.0,0.11552005]
[1765818100729,0.24263992,86548.0,86547.0,0.11552005]
[1765818101448,0.24267076,86537.0,86536.0,0.00999308]
[1765818101646,0.01155575,86537.0,86536.0,0.00999308]
[1765818101826,0.23111447,86538.0,86537.0,0.00999308]
[1765818102635,0.23111447,86538.0,86528.0,0.01155695]
[1765818102636,0.23113458,86530.0,86529.0,0.11552005]
[1765818102834,0.01155628,86533.0,86532.0,0.11552005]
[1765818103522,0.24268464,86533.0,86532.0,0.11552005]
[1765818103941,0.24268464,86533.0,86529.0,0.003]
[1765818103942,0.23113371,86530.0,86529.0,0.00999308]
[1765818104618,0.23113371,86530.0,86529.0,0.01199308]
[1765818105138,0.23113371,86530.0,86529.0,0.00999308]
[1765818105295,0.35106371,86530.0,86529.0,0.01099308]
[1765818105497,0.28022371,86530.0,86529.0,0.01099308]
[1765818105882,0.23180167,86530.0,86529.0,0.01099308]
[1765818106311,0.35173167,86530.0,86529.0,0.00999308]
[1765818106482,0.35173167,86530.0,86529.0,0.002]
[1765818106483,0.12059796,86530.0,86529.0,0.002]
[1765818106686,0.12059796,86530.0,86500.0,0.01844]
[1765818106687,0.01155909,86512.0,86500.0,0.01844]
[1765818106887,0.01155909,86512.0,86511.0,0.11552005]
[1765818107088,0.24274356,86512.0,86511.0,0.11552005]
[1765818107710,0.24273413,86515.0,86514.0,0.11552005]
[1765818107915,0.01155868,86515.0,86514.0,0.11552005]
[1765818108247,0.24273246,86515.0,86514.0,0.11552005]
[1765818110205,0.24273246,86515.0,86500.0,0.11918959]
[1765818110206,0.01156002,86505.0,86504.0,0.11552005]
[1765818110421,0.24275895,86506.0,86505.0,0.11552005]
[1765818111418,0.29184895,86506.0,86505.0,0.11552005]
[1765818111620,0.36268895,86506.0,86505.0,0.11552005]
[1765818112043,0.36268895,86506.0,86504.0,0.11752005]
[1765818112245,0.13403276,86505.0,86504.0,0.11552005]
[1765818112866,0.13403276,86505.0,86489.0,0.13864437]
[1765818112867,0.2312406,86490.0,86489.0,0.13864437]
[1765818113043,0.2312406,86490.0,86489.0,0.11552005]
[1765818113244,0.2312406,86490.0,86475.0,0.24284464]
[1765818113245,0.23125397,86485.0,86484.0,0.11552005]
[1765818113905,0.0115635,86479.0,86478.0,0.11552005]
[1765818114116,0.24283031,86481.0,86480.0,0.11552005]
[1765818115092,0.29192031,86481.0,86480.0,0.11552005]
[1765818115280,0.36276031,86481.0,86480.0,0.11552005]
[1765818115479,0.01156523,86466.0,86465.0,0.11552005]
[1765818116235,0.01156523,86466.0,86459.0,0.11759794]
[1765818116236,0.23132084,86460.0,86459.0,0.11759794]
[1765818117699,0.23132084,86460.0,86459.0,0.11859794]
[1765818118321,0.28041084,86460.0,86459.0,0.11859794]
[1765818118697,0.28041084,86460.0,86459.0,0.11959794]
[1765818119055,0.23132084,86460.0,86459.0,0.11959794]
[1765818120693,0.01156457,86471.0,86468.0,0.11552005]
[1765818120896,0.24284007,86477.0,86476.0,0.11552005]
[1765818121094,0.01156363,86478.0,86477.0,0.11552005]
[1765818121095,0.23127507,86478.0,86477.0,0.11552005]
[1765818121295,0.0115651,86467.0,86466.0,0.11552005]
[1765818121506,0.0115651,86467.0,86459.0,0.00307789]
[1765818121507,0.23132084,86460.0,86459.0,0.00307789]
[1765818121848,0.23131816,86461.0,86460.0,0.11552005]
[1765818122502,0.0815,86466.0,86463.0,0.01156564]
[1765818122724,0.0815,86466.0,86463.0,0.01317851]
[1765818122929,0.0815,86466.0,86465.0,0.11713292]
[1765818124660,0.21745276,86466.0,86465.0,0.002]
[1765818124858,0.09560276,86466.0,86465.0,0.11752005]
[1765818125069,0.09560276,86466.0,86465.0,0.11552005]
[1765818125331,0.24288126,86462.0,86461.0,0.11552005]
[1765818125962,0.23132084,86460.0,86459.0,0.00207789]
[1765818126166,0.01156992,86431.0,86416.0,0.00209]
[1765818126402,0.24299343,86423.0,86422.0,0.11552005]
[1765818127249,0.36484343,86423.0,86422.0,0.11552005]
[1765818127457,0.24299343,86423.0,86422.0,0.11552005]
[1765818127797,0.24299343,86423.0,86422.0,0.11652005]
[1765818128198,0.23143594,86417.0,86416.0,0.00161287]
[1765818128401,0.23143594,86417.0,86416.0,0.11713292]
[1765818129784,0.23143594,86417.0,86414.0,0.0004]
[1765818129785,0.2314413,86415.0,86414.0,0.01039308]
[1765818130073,0.2806613,86415.0,86414.0,0.01039308]
[1765818130279,0.2314413,86415.0,86414.0,0.01039308]
[1765818130958,0.3532913,86415.0,86414.0,0.01139308]
[1765818131158,0.3532913,86415.0,86414.0,0.0014]
[1765818131399,0.3532913,86415.0,86414.0,0.0004]
[1765818131779,0.3542913,86415.0,86414.0,0.0004]
[1765818132109,0.2324413,86415.0,86414.0,0.01039308]
[1765818132314,0.2334413,86415.0,86414.0,0.01039308]
[1765818132519,0.2324413,86415.0,86414.0,0.01039308]
[1765818132665,0.001,86415.0,86414.0,0.01039308]
[1765818132937,0.003,86415.0,86414.0,0.01039308]
[1765818133113,0.23143956,86416.0,86415.0,0.00999308]
[1765818133696,0.01157152,86419.0,86414.0,0.0004]
[1765818133896,0.01157152,86419.0,86417.0,0.11552005]
[1765818134104,0.01157059,86426.0,86421.0,0.01157126]
[1765818134458,0.24298297,86426.0,86425.0,0.11552005]
[1765818135401,0.24298297,86426.0,86393.0,0.01197501]
[1765818135402,0.2314413,86415.0,86393.0,0.01197501]
[1765818135615,0.2806613,86415.0,86402.0,0.23147513]
[1765818135834,0.2806613,86415.0,86411.0,0.11552005]
[1765818136043,0.2806613,86415.0,86413.0,0.11552005]
[1765818136265,0.3532913,86415.0,86409.0,0.11552005]
[1765818136692,0.2806613,86415.0,86409.0,0.11552005]
[1765818136893,0.2314413,86415.0,86409.0,0.11552005]
[1765818137093,0.2314413,86415.0,86414.0,0.00183381]
[1765818137436,0.24300006,86420.0,86414.0,0.00183381]
[1765818137437,0.01157139,86420.0,86419.0,0.11552005]
[1765818137850,0.0815,86422.0,86421.0,0.11552005]
[1765818138119,0.2334413,86415.0,86414.0,0.11592005]
[1765818138462,0.3552913,86415.0,86414.0,0.11592005]
[1765818138667,0.3552913,86415.0,86414.0,0.0004]
[1765818138873,0.3572913,86415.0,86414.0,0.0004]
[1765818139079,0.3552913,86415.0,86414.0,0.0004]
[1765818139293,0.0815,86422.0,86419.0,0.23142941]
[1765818139491,0.001,86420.0,86419.0,0.00161287]
[1765818139740,0.001,86420.0,86417.0,0.02314359]
[1765818139741,0.1658744,86420.0,86417.0,0.02314359]
[1765818139933,0.0115734,86405.0,86399.0,0.11552005]
[1765818140162,0.0115734,86405.0,86393.0,0.0004]
[1765818140163,0.26626755,86394.0,86393.0,0.0004]
[1765818141159,0.31548755,86394.0,86393.0,0.0004]
[1765818141303,0.26626755,86394.0,86393.0,0.0004]
[1765818141510,0.23149755,86394.0,86393.0,0.0004]
[1765818141718,0.23149182,86397.0,86393.0,0.0004]
[1765818141719,0.24306398,86397.0,86396.0,0.11552005]
[1765818142121,0.23149755,86394.0,86393.0,0.11753292]
[1765818142299,0.23149755,86394.0,86393.0,0.11853292]
[1765818142649,0.23149755,86394.0,86393.0,0.11753292]
[1765818143057,0.0115746,86396.0,86393.0,0.11753292]
[1765818143058,0.01157353,86404.0,86401.0,0.01157394]
[1765818143202,0.24304959,86404.0,86403.0,0.00999308]
[1765818143546,0.01157246,86412.0,86407.0,0.01157313]
[1765818143751,0.01157166,86418.0,86417.0,0.11552005]
[1765818143902,0.24300622,86418.0,86417.0,0.13557292]
[1765818144112,0.24297458,86429.0,86428.0,0.00999308]
[1765818144321,0.24297302,86430.0,86429.0,0.11552005]
[1765818144527,0.01156965,86433.0,86432.0,0.11552005]
[1765818144729,0.24296275,86433.0,86432.0,0.11552005]
[1765818144931,0.23139845,86431.0,86430.0,0.01844]
[1765818146031,0.24295862,86435.0,86430.0,0.01844]
[1765818146032,0.01156938,86435.0,86430.0,0.02005287]
[1765818146239,0.2429515,86437.0,86436.0,0.11552005]
[1765818146588,0.2429515,86437.0,86436.0,0.11713292]
[1765818147032,0.2429515,86437.0,86436.0,0.11552005]
[1765818147219,0.23139845,86431.0,86430.0,0.13396005]
[1765818147654,0.23439845,86431.0,86430.0,0.13396005]
[1765818148064,0.01157126,86421.0,86418.0,0.11552005]
[1765818148262,0.002,86435.0,86434.0,0.00999308]
[1765818148468,0.01156845,86442.0,86438.0,0.01156898]
[1765818148668,0.24293621,86443.0,86442.0,0.11552005]
[1765818149080,0.01156737,86450.0,86445.0,0.01156804]
[1765818149287,0.24291718,86450.0,86449.0,0.11552005]
[1765818149492,0.01156724,86451.0,86449.0,0.11552005]
[1765818149493,0.01156724,86451.0,86450.0,0.11552005]
[1765818149905,0.23135295,86448.0,86446.0,0.01844]
[1765818150754,0.26750295,86448.0,86446.0,0.01844]
[1765818151183,0.23135295,86448.0,86446.0,0.01844]
[1765818151502,0.23235295,86448.0,86446.0,0.01844]
[1765818151735,0.23135295,86448.0,86446.0,0.01844]
[1765818151945,0.2313583,86446.0,86445.0,0.11552005]
[1765818152115,0.24295281,86437.0,86436.0,0.11552005]
[1765818152317,0.01156885,86439.0,86437.0,0.11552005]
[1765818152318,0.01156898,86438.0,86437.0,0.11552005]
[1765818152612,0.01156804,86445.0,86444.0,0.11552005]
[1765818152822,0.24292902,86445.0,86444.0,0.11552005]
[1765818153128,0.23137947,86439.0,86438.0,0.11552005]
[1765818154229,0.23137947,86439.0,86438.0,0.01844]
[1765818154587,0.23137947,86439.0,86438.0,0.01910893]
[1765818154942,0.23137947,86439.0,86438.0,0.00066893]
[1765818155144,0.23137947,86439.0,86438.0,0.00166893]
[1765818155336,0.23237947,86439.0,86438.0,0.00166893]
[1765818155581,0.30604947,86439.0,86438.0,0.00166893]
[1765818155777,0.30604947,86439.0,86438.0,0.00066893]
[1765818155911,0.23337947,86439.0,86438.0,0.00066893]
[1765818156124,0.28331947,86439.0,86438.0,0.00066893]
[1765818156371,0.23337947,86439.0,86438.0,0.00066893]
[1765818156790,0.001,86439.0,86438.0,0.35167156]
[1765818156952,0.001,86439.0,86438.0,0.35416156]
[1765818157164,0.002,86439.0,86438.0,0.35416156]
[1765818157390,0.002,86439.0,86438.0,0.12278185]
[1765818157585,0.0835,86439.0,86438.0,0.35416156]
[1765818157784,0.0825,86439.0,86438.0,0.35416156]
[1765818157989,0.0565,86439.0,86438.0,0.35416156]
[1765818158239,0.28787704,86439.0,86438.0,0.11780185]
[1765818158982,0.28787704,86439.0,86438.0,0.11880185]
[1765818159408,0.28787704,86439.0,86438.0,0.13724185]
[1765818159621,0.28787704,86439.0,86438.0,0.13624185]
[1765818160018,0.28787704,86439.0,86438.0,0.13724185]
[1765818160222,0.28787704,86439.0,86438.0,0.13624185]
[1765818160545,0.28787704,86439.0,86438.0,0.11618898]
[1765818160752,0.35498704,86439.0,86438.0,0.11618898]
[1765818161080,0.35498704,86439.0,86438.0,0.00066893]
[1765818161637,0.35598704,86439.0,86438.0,0.00066893]
[1765818161843,0.35698704,86439.0,86438.0,0.00066893]
[1765818162044,0.64768704,86439.0,86438.0,0.00066893]
[1765818162407,0.64668704,86439.0,86438.0,0.00066893]
[1765818162614,0.64668704,86439.0,86396.0,0.03472381]
[1765818162615,0.24306814,86396.0,86395.0,0.11552005]
[1765818162843,0.24306814,86396.0,86395.0,0.00161287]
[1765818163037,0.24306814,86396.0,86395.0,0.11552005]
[1765818163147,0.24306814,86396.0,86388.0,0.08482908]
[1765818163148,0.23149755,86394.0,86388.0,0.20034913]
[1765818163373,0.23149755,86394.0,86388.0,0.08482908]
[1765818163374,0.28143755,86394.0,86388.0,0.08482908]
[1765818163579,0.35510755,86394.0,86388.0,0.08482908]
[1765818163781,0.64580755,86394.0,86378.0,0.11552005]
[1765818164527,0.64680755,86394.0,86372.0,0.01844]
[1765818164735,0.64680755,86394.0,86372.0,0.03001782]
[1765818164910,0.64680755,86394.0,86378.0,0.01157702]
[1765818165106,0.64680755,86394.0,86376.0,0.01157728]
[1765818165308,0.64680755,86394.0,86377.0,0.01157715]
[1765818165513,0.64680755,86394.0,86376.0,0.01157728]
[1765818165514,0.64680755,86394.0,86378.0,0.01157702]
[1765818165713,0.64880755,86394.0,86378.0,0.01157702]
[1765818165917,0.64780755,86394.0,86383.0,0.01998616]
[1765818166281,0.65080755,86394.0,86363.0,0.01157903]
[1765818166454,0.70082594,86394.0,86362.0,0.01844]
[1765818166767,0.70082594,86394.0,86361.0,0.0115793]
[1765818167068,0.70082594,86394.0,86376.0,0.11552005]
[1765818167376,0.66924755,86394.0,86378.0,0.11552005]
[1765818167522,0.65080755,86394.0,86378.0,0.11552005]
[1765818167725,0.65080755,86394.0,86364.0,0.01157889]
[1765818167726,0.23155652,86372.0,86359.0,0.23158997]
[1765818167906,0.23155652,86372.0,86369.0,0.11552005]
[1765818168111,0.23155652,86372.0,86371.0,0.11753292]
[1765818168509,0.23155652,86372.0,86371.0,0.11592005]
[1765818168709,0.23155652,86372.0,86371.0,0.11905616]
[1765818168914,0.01157728,86376.0,86373.0,0.01157769]
[1765818169157,0.23154336,86378.0,86377.0,0.00999308]
[1765818169158,0.01157702,86378.0,86377.0,0.00999308]
[1765818169467,0.23155116,86374.0,86373.0,0.01160595]
[1765818170921,0.23155116,86374.0,86373.0,0.01260595]
[1765818171329,0.23155116,86374.0,86373.0,0.01160595]
[1765818171780,0.23155116,86374.0,86373.0,0.01260595]
[1765818172158,0.23155116,86374.0,86373.0,0.01160595]
[1765818172358,0.23155116,86374.0,86373.0,0.01260595]
[1765818173642,0.23155116,86374.0,86373.0,0.01160595]
[1765818175567,0.23155116,86374.0,86373.0,0.00999308]
[1765818175734,0.23155652,86372.0,86371.0,0.0004]
[1765818177583,0.23155652,86372.0,86371.0,0.0014]
[1765818177825,0.35516652,86372.0,86371.0,0.0014]
[1765818178012,0.23161015,86352.0,86351.0,0.01039308]
[1765818178264,0.28155015,86352.0,86351.0,0.0004]
[1765818178455,0.28155015,86352.0,86351.0,0.00317439]
[1765818179659,0.28155015,86352.0,86351.0,0.00517439]
[1765818180143,0.28155015,86352.0,86351.0,0.00617439]
[1765818180345,0.35522015,86352.0,86351.0,0.00617439]
[1765818180732,0.64592015,86352.0,86351.0,0.00617439]
[1765818181516,0.64592015,86352.0,86351.0,0.00517439]
[1765818181717,0.64592015,86352.0,86351.0,0.00317439]
[1765818182604,0.64892015,86352.0,86351.0,0.00317439]
[1765818182821,0.64592015,86352.0,86351.0,0.00317439]
[1765818183325,0.25956795,86340.0,86339.0,0.00960372]
[1765818183655,0.63141795,86340.0,86339.0,0.00960372]
[1765818183867,0.70225795,86340.0,86339.0,0.00960372]
[1765818184903,0.23170138,86318.0,86316.0,0.0004]
[1765818185106,0.09525276,86317.0,86316.0,0.0004]
[1765818185326,0.45679276,86317.0,86316.0,0.0004]
[1765818185530,0.44269,86317.0,86316.0,0.0004]
[1765818185923,0.2907,86317.0,86316.0,0.0004]
[1765818186123,0.40865,86317.0,86316.0,0.0004]
[1765818186603,0.40965,86317.0,86316.0,0.0004]
[1765818186753,0.40865,86317.0,86316.0,0.0004]
[1765818187841,0.40965,86317.0,86316.0,0.0004]
[1765818188046,0.2917,86317.0,86316.0,0.0004]
[1765818188249,0.002,86317.0,86316.0,0.0004]
[1765818188446,0.01510276,86317.0,86316.0,0.11592005]
[1765818188652,0.001,86317.0,86316.0,0.12982005]
[1765818188852,0.002,86317.0,86316.0,0.11592005]
[1765818189061,0.002,86317.0,86316.0,0.38161967]
[1765818189258,0.002,86317.0,86316.0,0.39551967]
[1765818189680,0.01158426,86324.0,86321.0,0.24327648]
[1765818189883,0.01158426,86324.0,86323.0,0.11552005]
[1765818190082,0.01158426,86324.0,86323.0,0.12942005]
[1765818190283,0.01158426,86324.0,86323.0,0.13103292]
[1765818190515,0.24326692,86325.0,86324.0,0.11552005]
[1765818190746,0.01158412,86325.0,86324.0,0.11552005]
[1765818190929,0.01158359,86329.0,86327.0,0.11552005]
[1765818191169,0.32449,86355.0,86335.0,0.11552005]
[1765818191170,0.24323744,86336.0,86335.0,0.11552005]
[1765818191376,0.02316262,86346.0,86345.0,0.11552005]
[1765818191548,0.23160767,86353.0,86352.0,0.11552005]
[1765818191751,0.23160478,86354.0,86353.0,0.11552005]
[1765818192051,0.24318501,86354.0,86353.0,0.11552005]
[1765818192344,0.24318501,86354.0,86352.0,0.11713292]
[1765818192706,0.002,86353.0,86352.0,0.11713292]
[1765818192907,0.24318501,86354.0,86352.0,0.11713292]
[1765818193108,0.01410276,86353.0,86352.0,0.11713292]
[1765818193534,0.01410276,86353.0,86352.0,0.11552005]
[1765818193713,0.01158104,86348.0,86347.0,0.00999308]
[1765818193934,0.001,86353.0,86349.0,0.00999308]
[1765818194135,0.23161032,86352.0,86351.0,0.11552005]
[1765818194551,0.0115793,86361.0,86356.0,0.01157997]
[1765818194726,0.24316602,86361.0,86360.0,0.11552005]
[1765818195126,0.23161015,86352.0,86351.0,0.00161287]
[1765818195326,0.01158023,86354.0,86353.0,0.11552005]
[1765818195512,0.24318591,86354.0,86353.0,0.11552005]
[1765818195718,0.24318591,86354.0,86339.0,0.23164435]
[1765818195719,0.23163161,86344.0,86329.0,0.02548359]
[1765818195968,0.27874161,86344.0,86338.0,0.11552005]
[1765818196166,0.34958161,86344.0,86333.0,0.01848]
[1765818196571,0.23163161,86344.0,86336.0,0.11552005]
[1765818196776,0.34958161,86344.0,86336.0,0.11552005]
[1765818197195,0.27874161,86344.0,86336.0,0.11552005]
[1765818197406,0.35058161,86344.0,86336.0,0.11552005]
[1765818197613,0.27974161,86344.0,86336.0,0.11552005]
[1765818197837,0.23263161,86344.0,86336.0,0.11552005]
[1765818198039,0.30406722,86344.0,86338.0,0.01158238]
[1765818198335,0.25695722,86344.0,86336.0,0.37723386]
[1765818198530,0.25695722,86344.0,86343.0,0.11577532]
[1765818198669,0.25682851,86344.0,86343.0,0.11577532]
[1765818199011,0.25582851,86344.0,86343.0,0.11577532]
[1765818199186,0.25582851,86344.0,86343.0,0.00025527]
[1765818199392,0.25682851,86344.0,86343.0,0.00025527]
[1765818199574,0.37477851,86344.0,86343.0,0.00025527]
[1765818199799,0.37377851,86344.0,86343.0,0.00025527]
[1765818200019,0.01158493,86319.0,86313.0,0.02548574]
[1765818200196,0.01158493,86319.0,86318.0,0.11552005]
[1765818201531,0.02568769,86319.0,86318.0,0.11552005]
[1765818201726,0.25738638,86319.0,86317.0,0.11552005]
[1765818201949,0.23170138,86318.0,86317.0,0.11552005]
[1765818203491,0.0115848,86320.0,86317.0,0.00161287]
[1765818203693,0.24328081,86320.0,86319.0,0.00999308]
[1765818204228,0.01158372,86328.0,86321.0,0.01158466]
[1765818204433,0.01158345,86330.0,86329.0,0.11552005]
[1765818204641,0.01158251,86337.0,86336.0,0.11552005]
[1765818204842,0.01158184,86342.0,86336.0,0.01158265]
[1765818205034,0.01158144,86345.0,86344.0,0.00999308]
[1765818205158,0.24321037,86345.0,86344.0,0.00999308]